[Event "23rd ETCC Women 2021"]
[Site "Catez"]
[Date "2021.11.14"]
[Round "3.8"]
[White "Melia, Salome"]
[Black "Beydullayeva, Govhar"]
[Result "1/2-1/2"]
[ECO "B54"]
[WhiteElo "2371"]
[BlackElo "2278"]
[Annotator "NA"]
[PlyCount "88"]
[EventDate "2021.11.08"]
[EventType "team-tourn"]
[EventCountry "SLO"]
[SourceTitle "playchess.com"]
[Source "ChessBase"]
[SourceQuality "1"]
[WhiteTeam "Georgia"]
[BlackTeam "Azerbaijan"]
[WhiteTeamCountry "GEO"]
[BlackTeamCountry "AZE"]
[TimeControl "40/5400+30:1800+30"]

1. e4 {[%emt 0:00:03]} c5 {[%emt 0:00:11]} 2. Nf3 {[%emt 0:00:15]} d6 {[%emt 0:
00:06]} 3. Bb5+ {[%emt 0:00:25]} Bd7 {[%emt 0:00:17]} 4. c4 {[%emt 0:00:32]}
Nc6 {[%emt 0:00:49]} 5. d4 {[%emt 0:04:48]} cxd4 {[%emt 0:01:06]} 6. Nxd4 {
[%emt 0:00:14]} Nf6 {[%emt 0:00:17]} 7. Nc3 {[%emt 0:00:11]} g6 {[%emt 0:00:29]
} 8. O-O {[%emt 0:02:01]} Bg7 {[%emt 0:00:42]} 9. Bxc6 {[%emt 0:00:47]} bxc6 {
[%emt 0:00:37]} 10. c5 {[%emt 0:00:37]} O-O {[%emt 0:01:13]} 11. Re1 {[%emt 0:
08:51]} Qb8 {[%emt 0:09:49]} 12. h3 {[%emt 0:06:47]} Rd8 {[%emt 0:03:55]} 13.
cxd6 {[%emt 0:11:07]} exd6 {[%emt 0:00:15]} 14. Nf3 {[%emt 0:01:15]} d5 {
[%emt 0:17:26]} 15. exd5 {[%emt 0:22:47]} Nxd5 {[%emt 0:01:59]} 16. Nxd5 {
[%emt 0:00:43]} cxd5 {[%emt 0:00:04]} 17. Bg5 {[%emt 0:02:58]} Re8 {[%emt 0:08:
29]} 18. Rxe8+ {[%emt 0:00:41]} Qxe8 {[%emt 0:00:10]} 19. Qd2 {[%emt 0:07:42]}
Bf5 {[%emt 0:20:04]} 20. Rc1 {[%emt 0:03:04]} Qe4 {[%emt 0:04:30]} 21. Bh6 {
[%emt 0:09:25]} Bxh3 {[%emt 0:11:14]} 22. Bxg7 {[%emt 0:00:00]} Kxg7 {[%emt 0:
00:03]} 23. Rc7 {[%emt 0:11:52]} Be6 {[%emt 0:06:45]} 24. Ng5 {[%emt 0:00:15]}
Qb1+ {[%emt 0:02:15]} 25. Kh2 {[%emt 0:00:19]} Qf5 {[%emt 0:01:00]} 26. Qd4+ {
[%emt 0:02:26]} Kg8 {[%emt 0:00:15]} 27. Nxe6 {[%emt 0:00:19]} Qxe6 {[%emt 0:
00:15]} 28. Rxa7 {[%emt 0:00:32]} Rxa7 {[%emt 0:01:58]} 29. Qxa7 {[%emt 0:00:
02]} Qe5+ {[%emt 0:00:07]} 30. Kg1 {[%emt 0:00:04]} Qe1+ {[%emt 0:00:05]} 31.
Kh2 {[%emt 0:00:03]} Qe5+ {[%emt 0:00:03]} 32. Kg1 {[%emt 0:00:36]} d4 {
[%emt 0:02:23]} 33. Qa6 {[%emt 0:03:10]} Qe1+ {[%emt 0:00:43]} 34. Qf1 {
[%emt 0:00:08]} Qd2 {[%emt 0:00:09]} 35. Qb5 {[%emt 0:00:42]} Qe1+ {[%emt 0:03:
22]} 36. Qf1 {[%emt 0:00:02]} Qd2 {[%emt 0:00:27]} 37. Qb5 {[%emt 0:00:05]} d3
{[%emt 0:02:48]} 38. Qe8+ {[%emt 0:00:21]} Kg7 {[%emt 0:00:01]} 39. Qe5+ {
[%emt 0:00:05]} Kg8 {[%emt 0:00:27]} 40. Qe8+ {[%emt 0:00:12]} Kg7 {[%emt 0:00:
02]} 41. Qe5+ {[%emt 0:30:11]} Kh6 {[%emt 0:31:50]} 42. Qh2+ {[%emt 0:01:49]}
Kg5 {[%emt 0:00:00]} 43. Qe5+ {[%emt 0:00:00]} Kh6 {[%emt 0:00:00]} 44. Qh2+ {
[%emt 0:00:00]} Kg7 {[%emt 0:00:00]} 1/2-1/2

[Event "23rd ETCC Women 2021"]
[Site "Catez"]
[Date "2021.11.14"]
[Round "3.9"]
[White "Zawadzka, Jolanta"]
[Black "Danielian, Elina"]
[Result "0-1"]
[ECO "C01"]
[WhiteElo "2429"]
[BlackElo "2450"]
[Annotator "ChessBase"]
[PlyCount "94"]
[EventDate "2021.11.08"]
[EventType "team-tourn"]
[EventCountry "SLO"]
[SourceTitle "playchess.com"]
[Source "ChessBase"]
[SourceQuality "1"]
[WhiteTeam "Poland"]
[BlackTeam "Armenia"]
[WhiteTeamCountry "POL"]
[BlackTeamCountry "ARM"]
[TimeControl "40/5400+30:1800+30"]

1. e4 {[%emt 0:00:02]} e6 {[%emt 0:00:07]} 2. d4 {[%emt 0:00:07]} d5 {[%emt 0:
00:05]} 3. Nc3 {[%emt 0:00:04]} Bb4 {[%emt 0:00:20]} 4. exd5 {[%emt 0:00:28]}
exd5 {[%emt 0:00:04]} 5. Bd3 {[%emt 0:00:03]} Nc6 {[%emt 0:01:40]} 6. Nf3 {
[%emt 0:00:32]} Nge7 {[%emt 0:00:33]} 7. O-O {[%emt 0:00:26]} O-O {[%emt 0:04:
58]} 8. Ne2 {[%emt 0:01:21]} Bd6 {[%emt 0:05:53]} 9. Ng3 {[%emt 0:04:34]} Bxg3
{[%emt 0:10:07]} 10. hxg3 {[%emt 0:04:21]} Bf5 {[%emt 0:05:00]} 11. Be2 {
[%emt 0:06:51]} h6 {[%emt 0:00:45]} 12. c3 {[%emt 0:00:36]} Re8 {[%emt 0:00:42]
} 13. Re1 {[%emt 0:01:34]} a6 {[%emt 0:03:04]} 14. Nd2 {[%emt 0:04:15]} Bh7 {
[%emt 0:11:28]} 15. Nf1 {[%emt 0:05:13]} Nf5 {[%emt 0:00:45]} 16. g4 {[%emt 0:
07:46]} Nd6 {[%emt 0:00:28]} 17. f3 {[%emt 0:03:42]} Qf6 {[%emt 0:12:45]} 18.
Ng3 {[%emt 0:07:18]} Bg6 {[%emt 0:00:22]} 19. Bd2 {[%emt 0:02:01]} Nd8 {
[%emt 0:10:39]} 20. Qb3 {[%emt 0:05:25]} c6 {[%emt 0:00:36]} 21. Bf1 {[%emt 0:
00:19]} Ne6 {[%emt 0:00:50]} 22. Re5 {[%emt 0:04:24]} b5 {[%emt 0:05:06]} 23.
Rae1 {[%emt 0:04:33]} Qd8 {[%emt 0:04:22]} 24. Nf5 {[%emt 0:07:12]} Qd7 {
[%emt 0:05:34]} 25. Qa3 {[%emt 0:03:09]} Nc4 {[%emt 0:01:48]} 26. Bxc4 {
[%emt 0:00:05]} bxc4 {[%emt 0:00:31]} 27. Kf2 {[%emt 0:05:52]} a5 {[%emt 0:09:
26]} 28. Qa4 {[%emt 0:01:43]} h5 {[%emt 0:05:09]} 29. Ne3 {[%emt 0:05:34]} hxg4
{[%emt 0:00:24]} 30. Nxd5 {[%emt 0:02:26]} Qb7 {[%emt 0:00:30]} 31. Nf4 {
[%emt 0:01:06]} Qxb2 {[%emt 0:00:28]} 32. Qd1 {[%emt 0:01:31]} Bd3 {[%emt 0:00:
56]} 33. Kg3 {[%emt 0:02:40]} gxf3 {[%emt 0:00:13]} 34. gxf3 {[%emt 0:01:06]}
Nc7 {[%emt 0:00:27]} 35. Nxd3 {[%emt 0:00:45]} cxd3 {[%emt 0:00:04]} 36. Rxe8+
{[%emt 0:03:00]} Rxe8 {[%emt 0:00:06]} 37. Rxe8+ {[%emt 0:00:44]} Nxe8 {
[%emt 0:00:03]} 38. Qe1 {[%emt 0:00:13]} Nf6 {[%emt 0:00:12]} 39. Bg5 {[%emt 0:
02:50]} Qxa2 {[%emt 0:01:59]} 40. Bxf6 {[%emt 0:01:37]} gxf6 {[%emt 0:00:04]}
41. Qe4 {[%emt 0:31:59]} Qe2 {[%emt 0:31:49]} 42. Qg4+ {[%emt 0:00:00]} Kf8 {
[%emt 0:00:00]} 43. Qc8+ {[%emt 0:00:00]} Qe8 {[%emt 0:00:00]} 44. Qh3 {
[%emt 0:00:00]} Qe1+ {[%emt 0:00:00]} 45. Kg2 {[%emt 0:00:00]} d2 {[%emt 0:00:
00]} 46. Qc8+ {[%emt 0:00:00]} Qe8 {[%emt 0:00:00]} 47. Qc7 {[%emt 0:00:00]}
Qe2+ {[%emt 0:00:00]} 0-1

[Event "23rd ETCC Women 2021"]
[Site "Catez"]
[Date "2021.11.14"]
[Round "3.10"]
[White "Mkrtchian, Lilit"]
[Black "Cyfka, Karina"]
[Result "1/2-1/2"]
[ECO "A53"]
[WhiteElo "2379"]
[BlackElo "2416"]
[Annotator "NA"]
[PlyCount "64"]
[EventDate "2021.11.08"]
[EventType "team-tourn"]
[EventCountry "SLO"]
[SourceTitle "playchess.com"]
[Source "ChessBase"]
[SourceQuality "1"]
[WhiteTeam "Armenia"]
[BlackTeam "Poland"]
[WhiteTeamCountry "ARM"]
[BlackTeamCountry "POL"]
[TimeControl "40/5400+30:1800+30"]

1. Nf3 {[%emt 0:00:17]} Nf6 {[%emt 0:00:47]} 2. g3 {[%emt 0:00:24]} d5 {
[%emt 0:02:37]} 3. Bg2 {[%emt 0:00:15]} Nbd7 {[%emt 0:03:41]} 4. O-O {[%emt 0:
03:50]} e5 {[%emt 0:01:24]} 5. d3 {[%emt 0:00:17]} c6 {[%emt 0:03:57]} 6. c4 {
[%emt 0:00:42]} dxc4 {[%emt 0:02:55]} 7. dxc4 {[%emt 0:00:09]} Bc5 {[%emt 0:00:
54]} 8. Nc3 {[%emt 0:00:32]} O-O {[%emt 0:01:20]} 9. Ng5 {[%emt 0:05:16]} Qc7 {
[%emt 0:03:53]} 10. Qc2 {[%emt 0:01:10]} h6 {[%emt 0:03:24]} 11. Nge4 {[%emt 0:
04:43]} Nxe4 {[%emt 0:03:42]} 12. Nxe4 {[%emt 0:00:33]} Be7 {[%emt 0:00:16]}
13. b3 {[%emt 0:13:02]} Nc5 {[%emt 0:09:29]} 14. Bb2 {[%emt 0:01:05]} f5 {
[%emt 0:07:16]} 15. Nd2 {[%emt 0:07:03]} Ne6 {[%emt 0:03:00]} 16. Nf3 {[%emt 0:
07:24]} e4 {[%emt 0:03:15]} 17. Nd4 {[%emt 0:01:49]} Nxd4 {[%emt 0:04:12]} 18.
Bxd4 {[%emt 0:00:09]} Be6 {[%emt 0:00:13]} 19. Rad1 {[%emt 0:06:35]} Rfd8 {
[%emt 0:06:46]} 20. Qc3 {[%emt 0:13:39]} Bf8 {[%emt 0:01:00]} 21. f3 {[%emt 0:
09:20]} exf3 {[%emt 0:03:09]} 22. exf3 {[%emt 0:00:22]} Rd7 {[%emt 0:01:30]}
23. Qe3 {[%emt 0:03:46]} Bf7 {[%emt 0:05:07]} 24. Be5 {[%emt 0:01:18]} Qd8 {
[%emt 0:00:31]} 25. Qe2 {[%emt 0:01:05]} Rxd1 {[%emt 0:02:25]} 26. Rxd1 {
[%emt 0:03:00]} Qb6+ {[%emt 0:00:12]} 27. Bd4 {[%emt 0:05:14]} Bc5 {[%emt 0:05:
36]} 28. Bxc5 {[%emt 0:00:13]} Qxc5+ {[%emt 0:00:01]} 29. Qf2 {[%emt 0:00:06]}
Qxf2+ {[%emt 0:00:56]} 30. Kxf2 {[%emt 0:00:04]} Be6 {[%emt 0:00:03]} 31. f4 {
[%emt 0:03:53]} Kf7 {[%emt 0:01:15]} 32. c5 {[%emt 0:05:56]} Ke7 {[%emt 0:02:
20]} 1/2-1/2

[Event "23rd ETCC Women 2021"]
[Site "Catez"]
[Date "2021.11.14"]
[Round "3.11"]
[White "Socko, Monika"]
[Black "Sargsyan, Anna M."]
[Result "0-1"]
[ECO "C66"]
[WhiteElo "2393"]
[BlackElo "2385"]
[Annotator "ChessBase"]
[PlyCount "148"]
[EventDate "2021.11.08"]
[EventType "team-tourn"]
[EventCountry "SLO"]
[SourceTitle "playchess.com"]
[Source "ChessBase"]
[SourceQuality "1"]
[WhiteTeam "Poland"]
[BlackTeam "Armenia"]
[WhiteTeamCountry "POL"]
[BlackTeamCountry "ARM"]
[TimeControl "40/5400+30:1800+30"]

1. e4 {[%emt 0:00:02]} e5 {[%emt 0:00:30]} 2. Nf3 {[%emt 0:00:04]} Nc6 {
[%emt 0:00:08]} 3. Bb5 {[%emt 0:00:04]} d6 {[%emt 0:00:03]} 4. Nc3 {[%emt 0:03:
50]} Bd7 {[%emt 0:01:24]} 5. d4 {[%emt 0:02:47]} Nf6 {[%emt 0:00:19]} 6. O-O {
[%emt 0:02:10]} exd4 {[%emt 0:02:31]} 7. Nxd4 {[%emt 0:00:20]} Be7 {[%emt 0:00:
06]} 8. Nxc6 {[%emt 0:06:05]} bxc6 {[%emt 0:00:12]} 9. Be2 {[%emt 0:01:41]} O-O
{[%emt 0:00:07]} 10. Be3 {[%emt 0:05:43]} Rb8 {[%emt 0:01:34]} 11. b3 {[%emt 0:
03:33]} c5 {[%emt 0:02:50]} 12. Re1 {[%emt 0:03:34]} Bc6 {[%emt 0:01:10]} 13.
Bf3 {[%emt 0:02:05]} Nd7 {[%emt 0:02:03]} 14. Nd5 {[%emt 0:01:19]} Re8 {
[%emt 0:01:23]} 15. Qd2 {[%emt 0:05:24]} Bf8 {[%emt 0:04:56]} 16. Bg5 {[%emt 0:
01:28]} f6 {[%emt 0:02:47]} 17. Bf4 {[%emt 0:01:54]} Ne5 {[%emt 0:01:58]} 18.
Bh5 {[%emt 0:00:43]} g6 {[%emt 0:00:15]} 19. Be2 {[%emt 0:00:29]} Bg7 {[%emt 0:
00:22]} 20. Rad1 {[%emt 0:01:46]} Kh8 {[%emt 0:05:37]} 21. Qa5 {[%emt 0:06:43]}
Rb7 {[%emt 0:19:42]} 22. Ba6 {[%emt 0:05:27]} Bxd5 {[%emt 0:00:53]} 23. exd5 {
[%emt 0:02:45]} Rb6 {[%emt 0:03:18]} 24. Bb5 {[%emt 0:03:27]} Rf8 {[%emt 0:00:
26]} 25. Bf1 {[%emt 0:03:02]} Rb4 {[%emt 0:07:45]} 26. c4 {[%emt 0:01:23]} f5 {
[%emt 0:00:52]} 27. Bd2 {[%emt 0:01:45]} Rb8 {[%emt 0:00:55]} 28. Qa3 {[%emt 0:
01:46]} Qh4 {[%emt 0:02:58]} 29. h3 {[%emt 0:04:57]} g5 {[%emt 0:02:46]} 30.
Qc1 {[%emt 0:01:24]} g4 {[%emt 0:00:51]} 31. Bg5 {[%emt 0:01:44]} Qh5 {[%emt 0:
00:05]} 32. Be2 {[%emt 0:03:27]} Qf7 {[%emt 0:07:04]} 33. hxg4 {[%emt 0:01:33]}
fxg4 {[%emt 0:00:41]} 34. Rf1 {[%emt 0:01:38]} Nf3+ {[%emt 0:01:00]} 35. gxf3 {
[%emt 0:16:22]} gxf3 {[%emt 0:00:06]} 36. Bxf3 {[%emt 0:00:02]} Qxf3 {[%emt 0:
00:08]} 37. Qe3 {[%emt 0:00:01]} Qh5 {[%emt 0:02:16]} 38. Kg2 {[%emt 0:00:55]}
Rf5 {[%emt 0:02:02]} 39. f4 {[%emt 0:01:56]} h6 {[%emt 0:04:54]} 40. Rh1 {
[%emt 0:01:00]} Qg6 {[%emt 0:05:10]} 41. Qg3 {[%emt 0:14:27]} Re8 {[%emt 0:01:
27]} 42. Rd2 {[%emt 0:01:47]} Kh7 {[%emt 0:03:31]} 43. Rf2 {[%emt 0:10:16]}
Rff8 {[%emt 0:02:56]} 44. Bh4 {[%emt 0:02:28]} Qe4+ {[%emt 0:00:47]} 45. Qf3 {
[%emt 0:01:55]} Bd4 {[%emt 0:01:19]} 46. Qxe4+ {[%emt 0:01:19]} Rxe4 {[%emt 0:
00:02]} 47. Rf3 {[%emt 0:00:12]} Rfxf4 {[%emt 0:03:04]} 48. Rxf4 {[%emt 0:00:
50]} Rxf4 {[%emt 0:00:01]} 49. Bg3 {[%emt 0:00:04]} Re4 {[%emt 0:01:49]} 50.
Re1 {[%emt 0:01:52]} Rxe1 {[%emt 0:00:05]} 51. Bxe1 {[%emt 0:00:01]} Bf6 {
[%emt 0:00:06]} 52. Ba5 {[%emt 0:00:42]} Bd8 {[%emt 0:00:02]} 53. b4 {[%emt 0:
01:04]} cxb4 {[%emt 0:00:49]} 54. Bxb4 {[%emt 0:00:03]} Kg6 {[%emt 0:00:20]}
55. c5 {[%emt 0:01:03]} dxc5 {[%emt 0:04:13]} 56. Bxc5 {[%emt 0:00:15]} a6 {
[%emt 0:00:05]} 57. Kf3 {[%emt 0:00:44]} Kf5 {[%emt 0:00:06]} 58. d6 {[%emt 0:
02:04]} c6 {[%emt 0:00:48]} 59. Be3 {[%emt 0:01:09]} h5 {[%emt 0:00:07]} 60.
Bf4 {[%emt 0:00:47]} Bb6 {[%emt 0:01:54]} 61. Kg3 {[%emt 0:00:34]} Bd8 {
[%emt 0:00:25]} 62. Kf3 {[%emt 0:00:04]} Ke6 {[%emt 0:00:13]} 63. Kg3 {[%emt 0:
00:04]} Kd5 {[%emt 0:00:34]} 64. Kf3 {[%emt 0:00:26]} c5 {[%emt 0:01:23]} 65.
Ke3 {[%emt 0:01:01]} c4 {[%emt 0:01:04]} 66. Kd2 {[%emt 0:00:55]} h4 {[%emt 0:
00:15]} 67. Kc3 {[%emt 0:00:29]} h3 {[%emt 0:00:08]} 68. Bh2 {[%emt 0:00:56]}
Ba5+ {[%emt 0:00:30]} 69. Kb2 {[%emt 0:00:23]} Kc6 {[%emt 0:02:11]} 70. a3 {
[%emt 0:00:11]} Bb6 {[%emt 0:00:09]} 71. Kc3 {[%emt 0:00:43]} Bc5 {[%emt 0:00:
05]} 72. d7 {[%emt 0:00:38]} Kxd7 {[%emt 0:00:04]} 73. a4 {[%emt 0:00:09]} Bd6
{[%emt 0:00:09]} 74. Bg1 {[%emt 0:00:03]} h2 {[%emt 0:00:07]} 0-1

[Event "23rd ETCC Women 2021"]
[Site "Catez"]
[Date "2021.11.14"]
[Round "3.12"]
[White "Gaboyan, Susanna"]
[Black "Kulon, Klaudia"]
[Result "1/2-1/2"]
[ECO "A08"]
[WhiteElo "2253"]
[BlackElo "2328"]
[Annotator "NA"]
[PlyCount "76"]
[EventDate "2021.11.08"]
[EventType "team-tourn"]
[EventCountry "SLO"]
[SourceTitle "playchess.com"]
[Source "ChessBase"]
[SourceQuality "1"]
[WhiteTeam "Armenia"]
[BlackTeam "Poland"]
[WhiteTeamCountry "ARM"]
[BlackTeamCountry "POL"]
[TimeControl "40/5400+30:1800+30"]

1. Nf3 {[%emt 0:00:04]} Nf6 {[%emt 0:00:08]} 2. g3 {[%emt 0:00:07]} g6 {
[%emt 0:00:13]} 3. Bg2 {[%emt 0:00:06]} Bg7 {[%emt 0:00:06]} 4. O-O {[%emt 0:
00:07]} O-O {[%emt 0:00:08]} 5. d3 {[%emt 0:00:05]} d5 {[%emt 0:00:57]} 6. Nbd2
{[%emt 0:00:08]} c5 {[%emt 0:00:24]} 7. e4 {[%emt 0:00:07]} Nc6 {[%emt 0:00:21]
} 8. c3 {[%emt 0:02:07]} e5 {[%emt 0:00:56]} 9. exd5 {[%emt 0:01:18]} Nxd5 {
[%emt 0:00:05]} 10. Re1 {[%emt 0:00:18]} h6 {[%emt 0:00:33]} 11. Nc4 {[%emt 0:
02:05]} Re8 {[%emt 0:00:36]} 12. a4 {[%emt 0:01:33]} Nc7 {[%emt 0:12:32]} 13.
Be3 {[%emt 0:01:48]} Ne6 {[%emt 0:03:07]} 14. a5 {[%emt 0:04:44]} Rb8 {[%emt 0:
01:47]} 15. Qd2 {[%emt 0:02:28]} Kh7 {[%emt 0:01:52]} 16. h4 {[%emt 0:07:32]}
f5 {[%emt 0:08:14]} 17. Qc2 {[%emt 0:12:35]} Qc7 {[%emt 0:07:37]} 18. h5 {
[%emt 0:23:54]} g5 {[%emt 0:03:10]} 19. d4 {[%emt 0:00:40]} cxd4 {[%emt 0:07:
57]} 20. Qxf5+ {[%emt 0:01:40]} Kg8 {[%emt 0:01:44]} 21. Qg6 {[%emt 0:00:32]}
Nf8 {[%emt 0:05:35]} 22. Qxe8 {[%emt 0:10:36]} Be6 {[%emt 0:01:58]} 23. Qxb8 {
[%emt 0:00:08]} Qxb8 {[%emt 0:00:27]} 24. cxd4 {[%emt 0:03:44]} exd4 {[%emt 0:
00:55]} 25. Nxd4 {[%emt 0:06:36]} Nxd4 {[%emt 0:01:03]} 26. Bxd4 {[%emt 0:00:
35]} Bxd4 {[%emt 0:00:07]} 27. Ne3 {[%emt 0:00:20]} Qc7 {[%emt 0:03:00]} 28.
Rad1 {[%emt 0:06:08]} Qxa5 {[%emt 0:07:18]} 29. b4 {[%emt 0:08:49]} Qb6 {
[%emt 0:07:41]} 30. Nd5 {[%emt 0:00:52]} Bxd5 {[%emt 0:00:23]} 31. Bxd5+ {
[%emt 0:00:07]} Kh8 {[%emt 0:00:06]} 32. Re8 {[%emt 0:03:43]} Qf6 {[%emt 0:03:
21]} 33. Rxd4 {[%emt 0:00:42]} Qxd4 {[%emt 0:02:20]} 34. Rxf8+ {[%emt 0:00:04]}
Kg7 {[%emt 0:00:09]} 35. Rf7+ {[%emt 0:00:05]} Kg8 {[%emt 0:01:17]} 36. Rf5+ {
[%emt 0:00:05]} Kg7 {[%emt 0:00:26]} 37. Rf7+ {[%emt 0:00:06]} Kh8 {[%emt 0:00:
38]} 38. Rf8+ {[%emt 0:00:06]} Kg7 {[%emt 0:00:06]} 1/2-1/2

[Event "23rd ETCC Women 2021"]
[Site "Catez"]
[Date "2021.11.14"]
[Round "3.13"]
[White "Brunello, Marina"]
[Black "Osmak, Iulija"]
[Result "1-0"]
[ECO "C02"]
[WhiteElo "2359"]
[BlackElo "2423"]
[Annotator "NA"]
[PlyCount "79"]
[EventDate "2021.11.08"]
[EventType "team-tourn"]
[EventCountry "SLO"]
[SourceTitle "playchess.com"]
[Source "ChessBase"]
[SourceQuality "1"]
[WhiteTeam "Italy"]
[BlackTeam "Ukraine"]
[WhiteTeamCountry "ITA"]
[BlackTeamCountry "UKR"]
[TimeControl "40/5400+30:1800+30"]

1. e4 {[%emt 0:00:04]} e6 {[%emt 0:00:09]} 2. d4 {[%emt 0:00:03]} d5 {[%emt 0:
00:03]} 3. e5 {[%emt 0:00:03]} c5 {[%emt 0:00:04]} 4. c3 {[%emt 0:00:04]} Nc6 {
[%emt 0:00:08]} 5. Nf3 {[%emt 0:00:06]} Qb6 {[%emt 0:00:11]} 6. Be2 {[%emt 0:
00:10]} cxd4 7. cxd4 {[%emt 0:00:06]} Nh6 8. Bxh6 {[%emt 0:00:27]} Qxb2 {
[%emt 0:00:53]} 9. Nbd2 {[%emt 0:00:17]} gxh6 {[%emt 0:00:13]} 10. O-O {
[%emt 0:00:05]} Bd7 {[%emt 0:00:57]} 11. Rb1 {[%emt 0:03:24]} Qxa2 {[%emt 0:00:
21]} 12. Rxb7 {[%emt 0:00:52]} Rb8 {[%emt 0:00:39]} 13. Rxb8+ {[%emt 0:12:44]}
Nxb8 {[%emt 0:00:38]} 14. Qc1 {[%emt 0:00:04]} Bb4 {[%emt 0:12:17]} 15. Bd3 {
[%emt 0:09:23]} O-O {[%emt 0:09:03]} 16. Bb1 {[%emt 0:20:41]} Qa4 {[%emt 0:06:
10]} 17. Ne4 {[%emt 0:01:17]} dxe4 {[%emt 0:06:59]} 18. Qxh6 {[%emt 0:00:21]}
f6 {[%emt 0:02:18]} 19. exf6 {[%emt 0:01:48]} Kf7 {[%emt 0:02:12]} 20. Ng5+ {
[%emt 0:10:30]} Ke8 {[%emt 0:01:25]} 21. Nxh7 {[%emt 0:00:07]} Qa3 {[%emt 0:09:
43]} 22. Nxf8 {[%emt 0:02:20]} Bxf8 {[%emt 0:00:04]} 23. Qh5+ {[%emt 0:00:48]}
Kd8 {[%emt 0:00:03]} 24. Bxe4 {[%emt 0:00:10]} Qd6 {[%emt 0:01:36]} 25. Qa5+ {
[%emt 0:02:51]} Qb6 {[%emt 0:00:37]} 26. Qxb6+ {[%emt 0:04:17]} axb6 {[%emt 0:
00:03]} 27. Rb1 {[%emt 0:00:24]} b5 {[%emt 0:00:45]} 28. g4 {[%emt 0:00:40]}
Ke8 {[%emt 0:02:06]} 29. Bg6+ {[%emt 0:02:38]} Kd8 {[%emt 0:00:03]} 30. g5 {
[%emt 0:00:03]} Nc6 {[%emt 0:02:55]} 31. Rxb5 {[%emt 0:01:28]} Nxd4 {[%emt 0:
00:19]} 32. Rb8+ {[%emt 0:00:04]} Bc8 {[%emt 0:00:17]} 33. Bh5 {[%emt 0:01:22]}
Kc7 {[%emt 0:00:59]} 34. Ra8 {[%emt 0:00:26]} Kb7 {[%emt 0:01:10]} 35. Ra4 {
[%emt 0:00:21]} Nf5 {[%emt 0:00:09]} 36. g6 {[%emt 0:00:21]} Bd7 {[%emt 0:00:
17]} 37. Rf4 {[%emt 0:00:35]} e5 {[%emt 0:00:25]} 38. Re4 {[%emt 0:02:24]} Bd6
{[%emt 0:01:28]} 39. g7 {[%emt 0:01:05]} Be6 {[%emt 0:00:10]} 40. Bg4 {[%emt 0:
00:11]} 1-0

[Event "23rd ETCC Women 2021"]
[Site "Catez"]
[Date "2021.11.14"]
[Round "3.14"]
[White "Buksa, Nataliya"]
[Black "Zimina, Olga"]
[Result "0-1"]
[ECO "B12"]
[WhiteElo "2410"]
[BlackElo "2339"]
[Annotator "ChessBase"]
[PlyCount "128"]
[EventDate "2021.11.08"]
[EventType "team-tourn"]
[EventCountry "SLO"]
[SourceTitle "playchess.com"]
[Source "ChessBase"]
[SourceQuality "1"]
[WhiteTeam "Ukraine"]
[BlackTeam "Italy"]
[WhiteTeamCountry "UKR"]
[BlackTeamCountry "ITA"]
[TimeControl "40/5400+30:1800+30"]

1. e4 {[%emt 0:00:38]} c6 {[%emt 0:00:02]} 2. d4 {[%emt 0:00:09]} d5 {[%emt 0:
00:04]} 3. e5 {[%emt 0:00:03]} c5 {[%emt 0:00:15]} 4. dxc5 {[%emt 0:00:07]} e6
{[%emt 0:00:05]} 5. a3 {[%emt 0:00:04]} Bxc5 {[%emt 0:00:04]} 6. Qg4 {[%emt 0:
00:02]} Ne7 {[%emt 0:00:11]} 7. Bd3 {[%emt 0:01:11]} Nbc6 {[%emt 0:29:21]} 8.
Nf3 {[%emt 0:00:05]} Ng6 {[%emt 0:00:06]} 9. O-O {[%emt 0:02:08]} O-O {[%emt 0:
06:09]} 10. Qh5 {[%emt 0:12:02]} Qc7 {[%emt 0:03:29]} 11. Re1 {[%emt 0:12:04]}
Bd7 {[%emt 0:14:10]} 12. Nbd2 {[%emt 0:00:30]} a5 {[%emt 0:05:17]} 13. Nb3 {
[%emt 0:08:02]} Be7 {[%emt 0:13:03]} 14. c3 {[%emt 0:07:53]} b5 {[%emt 0:04:47]
} 15. Nbd4 {[%emt 0:21:42]} b4 {[%emt 0:05:31]} 16. Nb5 {[%emt 0:02:36]} Qb8 {
[%emt 0:00:36]} 17. a4 {[%emt 0:00:53]} Be8 {[%emt 0:02:44]} 18. c4 {[%emt 0:
02:59]} dxc4 {[%emt 0:01:20]} 19. Bxc4 {[%emt 0:00:03]} Na7 {[%emt 0:00:07]}
20. Nbd4 {[%emt 0:01:34]} Nc6 {[%emt 0:00:08]} 21. Nb3 {[%emt 0:01:33]} Bd7 {
[%emt 0:03:01]} 22. Bd3 {[%emt 0:04:09]} Rd8 {[%emt 0:00:53]} 23. Bg5 {[%emt 0:
04:04]} h6 {[%emt 0:03:27]} 24. Bxe7 {[%emt 0:08:09]} Ncxe7 {[%emt 0:01:00]}
25. Nfd4 {[%emt 0:02:24]} Nf4 {[%emt 0:00:59]} 26. Qf3 {[%emt 0:00:12]} Nxd3 {
[%emt 0:00:41]} 27. Qxd3 {[%emt 0:00:02]} Nc6 {[%emt 0:00:59]} 28. Nf3 {
[%emt 0:01:21]} Be8 {[%emt 0:00:48]} 29. Qc4 {[%emt 0:01:17]} Rd5 {[%emt 0:01:
19]} 30. Qe4 {[%emt 0:01:53]} Qb6 {[%emt 0:00:41]} 31. h4 {[%emt 0:03:05]} Rad8
{[%emt 0:00:11]} 32. Rec1 {[%emt 0:02:36]} Ne7 {[%emt 0:00:49]} 33. Qe2 {
[%emt 0:00:15]} Ng6 {[%emt 0:01:25]} 34. g3 {[%emt 0:00:05]} Ne7 {[%emt 0:00:
16]} 35. Nbd2 {[%emt 0:00:12]} Bc6 {[%emt 0:00:28]} 36. Nc4 {[%emt 0:00:44]}
Qa6 {[%emt 0:00:11]} 37. Ne1 {[%emt 0:01:36]} Ba8 {[%emt 0:01:30]} 38. Qe3 {
[%emt 0:00:16]} Nf5 {[%emt 0:01:27]} 39. Qb6 {[%emt 0:00:20]} Qxb6 {[%emt 0:00:
46]} 40. Nxb6 {[%emt 0:00:03]} Rxe5 {[%emt 0:00:34]} 41. Nxa8 {[%emt 0:07:43]}
Rxa8 {[%emt 0:00:28]} 42. Kf1 {[%emt 0:01:05]} Rd8 {[%emt 0:03:48]} 43. Rd1 {
[%emt 0:02:33]} Red5 {[%emt 0:00:36]} 44. Rxd5 {[%emt 0:00:14]} Rxd5 {[%emt 0:
00:05]} 45. Rc1 {[%emt 0:00:01]} Nd6 {[%emt 0:03:40]} 46. Ke2 {[%emt 0:00:46]}
g5 {[%emt 0:08:05]} 47. hxg5 {[%emt 0:02:11]} hxg5 {[%emt 0:00:03]} 48. Nd3 {
[%emt 0:00:05]} Kg7 {[%emt 0:02:24]} 49. g4 {[%emt 0:00:04]} Ne4 {[%emt 0:04:
27]} 50. Rc6 {[%emt 0:00:56]} Nf6 {[%emt 0:01:20]} 51. f3 {[%emt 0:00:23]} Nd7
{[%emt 0:00:06]} 52. Rc7 {[%emt 0:01:43]} Kf6 {[%emt 0:00:39]} 53. Nf2 {
[%emt 0:02:22]} Ke5 {[%emt 0:00:16]} 54. Ne4 {[%emt 0:01:06]} Kf4 {[%emt 0:01:
12]} 55. Nf2 {[%emt 0:02:38]} f6 {[%emt 0:04:28]} 56. Rc4+ {[%emt 0:09:49]} Ke5
{[%emt 0:00:13]} 57. Rc6 {[%emt 0:00:05]} Nc5 {[%emt 0:00:37]} 58. b3 {[%emt 0:
02:50]} f5 {[%emt 0:01:02]} 59. f4+ {[%emt 0:00:54]} gxf4 {[%emt 0:02:30]} 60.
g5 {[%emt 0:00:04]} f3+ {[%emt 0:00:19]} 61. Ke3 {[%emt 0:01:55]} Nxb3 {
[%emt 0:00:57]} 62. Rc7 {[%emt 0:00:20]} Nd2 {[%emt 0:01:46]} 63. Nh3 {[%emt 0:
00:03]} b3 {[%emt 0:00:25]} 64. Nf4 {[%emt 0:01:09]} f2 {[%emt 0:00:57]} 0-1